[Event "Late-Titled-Tuesday-Blitz-May-14-2024"]
[Site "Chess.com"]
[Date "2024.05.14"]
[Round "3"]
[White "urano56"]
[Black "marvinguevara"]
[Result "1-0"]
[WhiteElo "2421"]
[BlackElo "2200"]
[TimeControl "180+1"]
[EndTime "14:30:08 PDT"]
[Termination "urano56 won on time"]

1. e4 {[%clk 0:03:00.9]} 1... c5 {[%clk 0:02:59.8]} 2. Nf3 {[%clk 0:02:59.7]}
2... Nc6 {[%clk 0:02:56.5]} 3. d4 {[%clk 0:02:59.6]} 3... cxd4 {[%clk
0:02:55.4]} 4. Nxd4 {[%clk 0:03:00.5]} 4... g6 {[%clk 0:02:55.9]} 5. Nc3 {[%clk
0:02:57.5]} 5... Bg7 {[%clk 0:02:54.7]} 6. Be3 {[%clk 0:02:57.3]} 6... Nf6
{[%clk 0:02:53.2]} 7. Be2 {[%clk 0:02:57.3]} 7... d5 {[%clk 0:02:50.2]} 8. Nxc6
{[%clk 0:02:49.7]} 8... bxc6 {[%clk 0:02:49]} 9. e5 {[%clk 0:02:43.8]} 9... Nd7
{[%clk 0:02:42.9]} 10. f4 {[%clk 0:02:43.9]} 10... O-O {[%clk 0:02:41.6]} 11.
O-O {[%clk 0:02:42]} 11... Re8 {[%clk 0:02:31.8]} 12. Kh1 {[%clk 0:02:09.3]}
12... Nf8 {[%clk 0:02:31]} 13. Na4 {[%clk 0:02:03.4]} 13... h5 {[%clk
0:02:22.8]} 14. c4 {[%clk 0:01:49.7]} 14... Bf5 {[%clk 0:02:10.9]} 15. Rc1
{[%clk 0:01:37]} 15... Ne6 {[%clk 0:02:07.5]} 16. Nc5 {[%clk 0:01:18.7]} 16...
Nxc5 {[%clk 0:01:47.2]} 17. Bxc5 {[%clk 0:01:17.4]} 17... e6 {[%clk 0:01:42.4]}
18. Qa4 {[%clk 0:01:13.4]} 18... Qh4 {[%clk 0:01:11.5]} 19. g3 {[%clk
0:00:42.5]} 19... Be4+ {[%clk 0:00:59.2]} 20. Bf3 {[%clk 0:00:41.2]} 20... Bxf3+
{[%clk 0:00:57.1]} 21. Rxf3 {[%clk 0:00:42.1]} 21... Qg4 {[%clk 0:00:57]} 22.
Kg2 {[%clk 0:00:40.6]} 22... h4 {[%clk 0:00:46.3]} 23. h3 {[%clk 0:00:35.8]}
23... Qf5 {[%clk 0:00:46]} 24. g4 {[%clk 0:00:32.6]} 24... Qe4 {[%clk
0:00:45.4]} 25. Qc2 {[%clk 0:00:32.7]} 25... Qxc2+ {[%clk 0:00:38.3]} 26. Rxc2
{[%clk 0:00:33.6]} 26... a5 {[%clk 0:00:35.6]} 27. Bf2 {[%clk 0:00:28.4]} 27...
Rab8 {[%clk 0:00:26.1]} 28. Bxh4 {[%clk 0:00:27.9]} 28... Rb4 {[%clk 0:00:24.7]}
29. cxd5 {[%clk 0:00:24.3]} 29... cxd5 {[%clk 0:00:24.2]} 30. b3 {[%clk
0:00:23]} 30... Reb8 {[%clk 0:00:21.8]} 31. Rfc3 {[%clk 0:00:12.2]} 31... Kh7
{[%clk 0:00:18.9]} 32. Bg3 {[%clk 0:00:11.6]} 32... a4 {[%clk 0:00:17.5]} 33.
bxa4 {[%clk 0:00:11.9]} 33... Rxa4 {[%clk 0:00:17.1]} 34. h4 {[%clk 0:00:12.5]}
34... d4 {[%clk 0:00:16.3]} 35. Rc7 {[%clk 0:00:12.2]} 35... d3 {[%clk
0:00:15.3]} 36. Rd2 {[%clk 0:00:12.5]} 36... Rd8 {[%clk 0:00:15.4]} 37. Rxf7
{[%clk 0:00:11.7]} 37... Rc4 {[%clk 0:00:13]} 38. Kf2 {[%clk 0:00:10.7]} 38...
Re4 {[%clk 0:00:12.2]} 39. h5 {[%clk 0:00:08.3]} 39... gxh5 {[%clk 0:00:10.8]}
40. gxh5 {[%clk 0:00:08.6]} 40... Kg8 {[%clk 0:00:11.5]} 41. Rb7 {[%clk
0:00:06.8]} 41... Bf8 {[%clk 0:00:11.8]} 42. Bh4 {[%clk 0:00:07.1]} 42... Bc5+
{[%clk 0:00:11.3]} 43. Kf3 {[%clk 0:00:07.6]} 43... Re3+ {[%clk 0:00:10.9]} 44.
Kg4 {[%clk 0:00:07.3]} 44... Rf8 {[%clk 0:00:11.1]} 45. Bf6 {[%clk 0:00:07.1]}
45... Rf7 {[%clk 0:00:09.2]} 46. Rb8+ {[%clk 0:00:07.2]} 46... Kh7 {[%clk
0:00:08.5]} 47. Rc8 {[%clk 0:00:07.9]} 47... Bf8 {[%clk 0:00:06.7]} 48. Rd8
{[%clk 0:00:07.7]} 48... Kh6 {[%clk 0:00:04.7]} 49. R8xd3 {[%clk 0:00:07.8]}
49... Re1 {[%clk 0:00:04.1]} 50. Bg5+ {[%clk 0:00:07.7]} 50... Kh7 {[%clk
0:00:03.7]} 51. Rd7 {[%clk 0:00:08.4]} 51... Rg1+ {[%clk 0:00:02.9]} 52. Kh3
{[%clk 0:00:08.8]} 52... Rh1+ {[%clk 0:00:02.9]} 53. Kg2 {[%clk 0:00:09.3]}
53... Rxd7 {[%clk 0:00:01.1]} 54. Rxd7+ {[%clk 0:00:10.2]} 54... Kg8 {[%clk
0:00:01.5]} 55. Kxh1 {[%clk 0:00:10.8]} 1-0

[Event "Late-Titled-Tuesday-Blitz-May-14-2024"]
[Site "Chess.com"]
[Date "2024.05.14"]
[Round "3"]
[White "YouShallNotPass001"]
[Black "Meri-Arabidze"]
[Result "0-1"]
[WhiteElo "2494"]
[BlackElo "2689"]
[TimeControl "180+1"]
[EndTime "14:30:12 PDT"]
[Termination "Meri-Arabidze won by checkmate"]

1. e4 {[%clk 0:03:00.9]} 1... c5 {[%clk 0:02:59.7]} 2. Nf3 {[%clk 0:03:01.2]}
2... e6 {[%clk 0:03:00.4]} 3. g3 {[%clk 0:02:59.6]} 3... Nc6 {[%clk 0:03:00.2]}
4. Bg2 {[%clk 0:02:59.5]} 4... Nf6 {[%clk 0:03:00.9]} 5. Nc3 {[%clk 0:02:58]}
5... d5 {[%clk 0:02:57.9]} 6. exd5 {[%clk 0:02:58.9]} 6... exd5 {[%clk
0:02:57.8]} 7. d4 {[%clk 0:02:59.1]} 7... cxd4 {[%clk 0:02:57.3]} 8. Nxd4 {[%clk
0:02:58.8]} 8... Bc5 {[%clk 0:02:57.9]} 9. Nb3 {[%clk 0:02:58.6]} 9... Bb4
{[%clk 0:02:51]} 10. Bd2 {[%clk 0:02:57.1]} 10... O-O {[%clk 0:02:44]} 11. O-O
{[%clk 0:02:56.8]} 11... Bg4 {[%clk 0:02:42.7]} 12. Bf3 {[%clk 0:02:54.1]} 12...
Bh3 {[%clk 0:02:36.9]} 13. Re1 {[%clk 0:02:53.2]} 13... h6 {[%clk 0:02:24.4]}
14. a3 {[%clk 0:02:48.2]} 14... Bd6 {[%clk 0:02:23.1]} 15. Be3 {[%clk 0:02:47]}
15... Ne5 {[%clk 0:02:21.4]} 16. Nxd5 {[%clk 0:02:29.9]} 16... Nxf3+ {[%clk
0:02:20.5]} 17. Qxf3 {[%clk 0:02:30.8]} 17... Nxd5 {[%clk 0:01:52.5]} 18. Qxd5
{[%clk 0:02:31.7]} 18... Qf6 {[%clk 0:01:50.8]} 19. Nd4 {[%clk 0:02:03.3]} 19...
b6 {[%clk 0:01:38.6]} 20. Qf3 {[%clk 0:01:44.7]} 20... Qg6 {[%clk 0:01:38.3]}
21. c3 {[%clk 0:01:36.4]} 21... Rad8 {[%clk 0:01:33.8]} 22. Bf4 {[%clk
0:01:25.5]} 22... Bc5 {[%clk 0:01:31.8]} 23. Nc6 {[%clk 0:01:17.7]} 23... Rd3
{[%clk 0:01:27.3]} 24. Qe4 {[%clk 0:01:07.6]} 24... Bf5 {[%clk 0:01:12]} 25.
Ne7+ {[%clk 0:00:58.2]} 25... Bxe7 {[%clk 0:01:12]} 26. Qxe7 {[%clk 0:00:59.1]}
26... Rfd8 {[%clk 0:01:10.4]} 27. Qxa7 {[%clk 0:00:47.8]} 27... Bh3 {[%clk
0:01:10.5]} 28. Qb7 {[%clk 0:00:41]} 28... h5 {[%clk 0:01:10.4]} 29. Be3 {[%clk
0:00:37.1]} 29... R3d6 {[%clk 0:01:03.9]} 30. Bd4 {[%clk 0:00:35.8]} 30... Be6
{[%clk 0:00:56.7]} 31. Re5 {[%clk 0:00:31.6]} 31... Bd5 {[%clk 0:00:54.3]} 32.
Qe7 {[%clk 0:00:28.9]} 32... f6 {[%clk 0:00:46.2]} 33. Re3 {[%clk 0:00:27.5]}
33... Qf5 {[%clk 0:00:44.4]} 34. Rae1 {[%clk 0:00:23]} 34... Qh3 {[%clk
0:00:42.3]} 35. f3 {[%clk 0:00:23.1]} 35... h4 {[%clk 0:00:42.9]} 36. Bxf6
{[%clk 0:00:14.9]} 36... gxf6 {[%clk 0:00:38.7]} 37. Qc7 {[%clk 0:00:07.2]}
37... Bf7 {[%clk 0:00:30.8]} 38. g4 {[%clk 0:00:07.1]} 38... Rd2 {[%clk
0:00:27.7]} 39. R3e2 {[%clk 0:00:07.4]} 39... Rxe2 {[%clk 0:00:27.3]} 40. Qxd8+
{[%clk 0:00:06.9]} 40... Kg7 {[%clk 0:00:26.4]} 41. Rxe2 {[%clk 0:00:07.4]}
41... Qxf3 {[%clk 0:00:27]} 42. Qd2 {[%clk 0:00:07.3]} 42... h3 {[%clk
0:00:24.8]} 43. Qe3 {[%clk 0:00:06.9]} 43... Qd5 {[%clk 0:00:18.2]} 44. Qxh3
{[%clk 0:00:06.9]} 44... Qd1+ {[%clk 0:00:18]} 45. Kf2 {[%clk 0:00:07.5]} 45...
Bc4 {[%clk 0:00:18]} 46. Re7+ {[%clk 0:00:04.9]} 46... Kf8 {[%clk 0:00:18.2]}
47. Qh7 {[%clk 0:00:04.8]} 47... Qf1+ {[%clk 0:00:17.5]} 48. Kg3 {[%clk
0:00:04.9]} 48... Qg1+ {[%clk 0:00:16.7]} 49. Kf4 {[%clk 0:00:04.1]} 49... Qf2+
{[%clk 0:00:17]} 50. Ke4 {[%clk 0:00:03.9]} 50... Qe2+ {[%clk 0:00:16.7]} 51.
Kd4 {[%clk 0:00:04.5]} 51... Qxg4+ {[%clk 0:00:09.4]} 52. Re4 {[%clk 0:00:03.2]}
52... Qc8 {[%clk 0:00:01.3]} 53. Qe7+ {[%clk 0:00:02.5]} 53... Kg8 {[%clk
0:00:00.8]} 54. Qxf6 {[%clk 0:00:03.1]} 54... Qc5# {[%clk 0:00:00.4]} 0-1

[Event "Late-Titled-Tuesday-Blitz-May-14-2024"]
[Site "Chess.com"]
[Date "2024.05.14"]
[Round "3"]
[White "Zq1"]
[Black "albayo"]
[Result "1-0"]
[WhiteElo "2615"]
[BlackElo "2404"]
[TimeControl "180+1"]
[EndTime "14:30:19 PDT"]
[Termination "Zq1 won by checkmate"]

1. d4 {[%clk 0:03:00.9]} 1... Nf6 {[%clk 0:02:58.3]} 2. c4 {[%clk 0:03:01]} 2...
g6 {[%clk 0:02:57.5]} 3. Nc3 {[%clk 0:03:00.4]} 3... Bg7 {[%clk 0:02:55.5]} 4.
e4 {[%clk 0:03:00.5]} 4... d6 {[%clk 0:02:54]} 5. Nf3 {[%clk 0:03:00.6]} 5...
O-O {[%clk 0:02:51.6]} 6. Be2 {[%clk 0:03:00.6]} 6... e5 {[%clk 0:02:48]} 7. O-O
{[%clk 0:02:58.4]} 7... Nc6 {[%clk 0:02:33.4]} 8. d5 {[%clk 0:02:56.8]} 8... Ne7
{[%clk 0:02:28.8]} 9. Ne1 {[%clk 0:02:56.6]} 9... Nd7 {[%clk 0:02:26.6]} 10. Be3
{[%clk 0:02:56.2]} 10... f5 {[%clk 0:02:24]} 11. f3 {[%clk 0:02:56.6]} 11... f4
{[%clk 0:02:20.5]} 12. Bf2 {[%clk 0:02:57.2]} 12... g5 {[%clk 0:02:18.2]} 13.
Nb5 {[%clk 0:02:57.2]} 13... b6 {[%clk 0:02:12.6]} 14. b4 {[%clk 0:02:53.5]}
14... a6 {[%clk 0:02:04.7]} 15. Nc3 {[%clk 0:02:52.9]} 15... Ng6 {[%clk
0:02:03.4]} 16. a4 {[%clk 0:02:52.7]} 16... a5 {[%clk 0:02:01.1]} 17. bxa5
{[%clk 0:02:51.6]} 17... Rxa5 {[%clk 0:02:01.1]} 18. Nd3 {[%clk 0:02:51.4]}
18... Nf6 {[%clk 0:01:58]} 19. Nb5 {[%clk 0:02:51]} 19... Bd7 {[%clk 0:01:54.6]}
20. Be1 {[%clk 0:02:50.2]} 20... Ra8 {[%clk 0:01:52.9]} 21. a5 {[%clk
0:02:49.5]} 21... bxa5 {[%clk 0:01:33.3]} 22. Rxa5 {[%clk 0:02:48]} 22... Rxa5
{[%clk 0:01:32.8]} 23. Bxa5 {[%clk 0:02:46.8]} 23... Ne8 {[%clk 0:01:31.3]} 24.
Nf2 {[%clk 0:02:41.3]} 24... Rf7 {[%clk 0:01:30.8]} 25. c5 {[%clk 0:02:37.6]}
25... Bxb5 {[%clk 0:01:27.4]} 26. Bxb5 {[%clk 0:02:36.7]} 26... h5 {[%clk
0:01:27.1]} 27. cxd6 {[%clk 0:02:22.2]} 27... Nxd6 {[%clk 0:01:25.5]} 28. Be2
{[%clk 0:02:18.5]} 28... Bf8 {[%clk 0:01:15.1]} 29. Qc2 {[%clk 0:02:15.8]} 29...
Rg7 {[%clk 0:01:04.2]} 30. Rc1 {[%clk 0:02:11.5]} 30... Ne8 {[%clk 0:01:04.1]}
31. Qc6 {[%clk 0:02:06.2]} 31... Bd6 {[%clk 0:01:03.7]} 32. Be1 {[%clk
0:01:53.2]} 32... Kh7 {[%clk 0:00:59.1]} 33. Ra1 {[%clk 0:01:52.5]} 33... Qd7
{[%clk 0:00:57.7]} 34. Qxd7 {[%clk 0:01:46.2]} 34... Rxd7 {[%clk 0:00:58.6]} 35.
Bb5 {[%clk 0:01:42.2]} 35... Re7 {[%clk 0:00:58.7]} 36. g4 {[%clk 0:01:32.8]}
36... fxg3 {[%clk 0:00:55]} 37. hxg3 {[%clk 0:01:32.5]} 37... Nf6 {[%clk
0:00:55.4]} 38. Be2 {[%clk 0:01:22.4]} 38... h4 {[%clk 0:00:51.8]} 39. Nh3
{[%clk 0:01:15]} 39... hxg3 {[%clk 0:00:41.2]} 40. Bxg3 {[%clk 0:01:07]} 40...
Kh6 {[%clk 0:00:38.1]} 41. Kf2 {[%clk 0:01:04.5]} 41... g4 {[%clk 0:00:27.6]}
42. Ng1 {[%clk 0:00:53.8]} 42... Bc5+ {[%clk 0:00:20]} 43. Kg2 {[%clk 0:00:52]}
43... Nf4+ {[%clk 0:00:18.4]} 44. Bxf4+ {[%clk 0:00:49]} 44... exf4 {[%clk
0:00:19.3]} 45. Ra6 {[%clk 0:00:38.2]} 45... Kg5 {[%clk 0:00:18.7]} 46. fxg4
{[%clk 0:00:25.8]} 46... Rxe4 {[%clk 0:00:17.9]} 47. Bf3 {[%clk 0:00:20.9]}
47... Bxg1 {[%clk 0:00:12]} 48. Bxe4 {[%clk 0:00:19.6]} 48... Nxe4 {[%clk
0:00:12.5]} 49. Kxg1 {[%clk 0:00:18.8]} 49... Kxg4 {[%clk 0:00:13]} 50. Rc6
{[%clk 0:00:18.2]} 50... f3 {[%clk 0:00:11.6]} 51. Rxc7 {[%clk 0:00:18]} 51...
f2+ {[%clk 0:00:11.5]} 52. Kg2 {[%clk 0:00:17.3]} 52... Kf4 {[%clk 0:00:10.1]}
53. Rc4 {[%clk 0:00:17.2]} 53... Ke5 {[%clk 0:00:06.4]} 54. Rxe4+ {[%clk
0:00:17.1]} 54... Kxe4 {[%clk 0:00:07.3]} 55. d6 {[%clk 0:00:17.1]} 55... Ke3
{[%clk 0:00:08]} 56. Kf1 {[%clk 0:00:17.2]} 56... Kf3 {[%clk 0:00:06.6]} 57. d7
{[%clk 0:00:17.1]} 57... Kg3 {[%clk 0:00:06.6]} 58. d8=Q {[%clk 0:00:17.1]}
58... Kf3 {[%clk 0:00:07.5]} 59. Qd3+ {[%clk 0:00:16.9]} 59... Kg4 {[%clk
0:00:07.3]} 60. Kxf2 {[%clk 0:00:17]} 60... Kf4 {[%clk 0:00:08.2]} 61. Qe3+
{[%clk 0:00:16.8]} 61... Kf5 {[%clk 0:00:09.1]} 62. Kg3 {[%clk 0:00:15.5]} 62...
Kf6 {[%clk 0:00:09.1]} 63. Kg4 {[%clk 0:00:15.5]} 63... Kg6 {[%clk 0:00:10]} 64.
Qe6+ {[%clk 0:00:13.2]} 64... Kg7 {[%clk 0:00:10.1]} 65. Kg5 {[%clk 0:00:12.8]}
65... Kh8 {[%clk 0:00:11]} 66. Qd7 {[%clk 0:00:12.4]} 66... Kg8 {[%clk
0:00:11.2]} 67. Kg6 {[%clk 0:00:11.9]} 67... Kf8 {[%clk 0:00:12.1]} 68. Qd8#
{[%clk 0:00:12]} 1-0

[Event "Late-Titled-Tuesday-Blitz-May-14-2024"]
[Site "Chess.com"]
[Date "2024.05.14"]
[Round "3"]
[White "Flaccidmoves"]
[Black "ansko1999"]
[Result "1/2-1/2"]
[WhiteElo "2443"]
[BlackElo "2617"]
[TimeControl "180+1"]
[EndTime "14:30:26 PDT"]
[Termination "Game drawn by repetition"]

1. c4 {[%clk 0:03:00.9]} 1... Nf6 {[%clk 0:02:58.8]} 2. Nc3 {[%clk 0:02:59.9]}
2... e6 {[%clk 0:02:56.1]} 3. e4 {[%clk 0:02:59.6]} 3... d5 {[%clk 0:02:56.6]}
4. cxd5 {[%clk 0:02:59.4]} 4... exd5 {[%clk 0:02:56.9]} 5. e5 {[%clk 0:03:00.1]}
5... Ne4 {[%clk 0:02:57.4]} 6. d4 {[%clk 0:02:55.3]} 6... Bb4 {[%clk 0:02:52.1]}
7. Qc2 {[%clk 0:02:46.6]} 7... c5 {[%clk 0:02:43.6]} 8. Nf3 {[%clk 0:02:42.6]}
8... Bf5 {[%clk 0:02:35.2]} 9. Bd3 {[%clk 0:02:42.1]} 9... c4 {[%clk 0:02:32.8]}
10. Bxe4 {[%clk 0:02:39]} 10... dxe4 {[%clk 0:02:26.6]} 11. Be3 {[%clk
0:02:26.5]} 11... Nc6 {[%clk 0:02:12.6]} 12. Nd2 {[%clk 0:02:19.5]} 12... O-O
{[%clk 0:01:57.1]} 13. Nxc4 {[%clk 0:02:08.5]} 13... Nxd4 {[%clk 0:01:53.1]} 14.
Qd2 {[%clk 0:02:08.3]} 14... Nc6 {[%clk 0:01:39.4]} 15. O-O {[%clk 0:01:59.7]}
15... Qxd2 {[%clk 0:01:37]} 16. Bxd2 {[%clk 0:01:58.3]} 16... Rfe8 {[%clk
0:01:35.8]} 17. Bf4 {[%clk 0:01:51.8]} 17... Nd4 {[%clk 0:01:11.4]} 18. Be3
{[%clk 0:01:06.5]} 18... Nc2 {[%clk 0:00:50.9]} 19. Rac1 {[%clk 0:01:02.5]}
19... Nxe3 {[%clk 0:00:50.1]} 20. fxe3 {[%clk 0:01:01.5]} 20... Bg6 {[%clk
0:00:46.1]} 21. Nd5 {[%clk 0:00:56.2]} 21... Bf8 {[%clk 0:00:35.5]} 22. Nc7
{[%clk 0:00:55.8]} 22... Bc5 {[%clk 0:00:21.7]} 23. Nxa8 {[%clk 0:00:54.5]}
23... Rxa8 {[%clk 0:00:22.6]} 24. Kf2 {[%clk 0:00:50.7]} 24... Re8 {[%clk
0:00:20.9]} 25. Nd6 {[%clk 0:00:47.5]} 25... Rxe5 {[%clk 0:00:20]} 26. Nxb7
{[%clk 0:00:39.4]} 26... Rf5+ {[%clk 0:00:18.4]} 27. Kg3 {[%clk 0:00:27.5]}
27... Rg5+ {[%clk 0:00:17.4]} 28. Kf2 {[%clk 0:00:26]} 28... Rf5+ {[%clk
0:00:17.4]} 29. Ke2 {[%clk 0:00:26.5]} 29... Bh5+ {[%clk 0:00:17.6]} 30. Kd2
{[%clk 0:00:26.6]} 30... Bb4+ {[%clk 0:00:17.7]} 31. Kc2 {[%clk 0:00:24.4]}
31... Rb5 {[%clk 0:00:15.3]} 32. Nd8 {[%clk 0:00:19]} 32... Be2 {[%clk
0:00:15.7]} 33. Rfd1 {[%clk 0:00:17.6]} 33... Bxd1+ {[%clk 0:00:14.1]} 34. Rxd1
{[%clk 0:00:18.5]} 34... Rc5+ {[%clk 0:00:13.7]} 35. Kb1 {[%clk 0:00:18.7]}
35... g6 {[%clk 0:00:12]} 36. a3 {[%clk 0:00:19.2]} 36... Ba5 {[%clk 0:00:10.7]}
37. b4 {[%clk 0:00:19.7]} 37... Rb5 {[%clk 0:00:08.3]} 38. Nc6 {[%clk
0:00:20.3]} 38... Bb6 {[%clk 0:00:08.6]} 39. Nd4 {[%clk 0:00:20]} 39... Rd5
{[%clk 0:00:07.9]} 40. Kc2 {[%clk 0:00:19.7]} 40... f5 {[%clk 0:00:07.9]} 41. a4
{[%clk 0:00:17.1]} 41... Bxd4 {[%clk 0:00:04.6]} 42. exd4 {[%clk 0:00:16.4]}
42... Kf7 {[%clk 0:00:04.7]} 43. b5 {[%clk 0:00:16.2]} 43... Ke6 {[%clk
0:00:04.9]} 44. Kc3 {[%clk 0:00:16.5]} 44... Rd8 {[%clk 0:00:05.1]} 45. a5
{[%clk 0:00:16.3]} 45... Kd5 {[%clk 0:00:05.3]} 46. b6 {[%clk 0:00:14.9]} 46...
axb6 {[%clk 0:00:05.6]} 47. axb6 {[%clk 0:00:15.8]} 47... Rb8 {[%clk 0:00:05.4]}
48. Rb1 {[%clk 0:00:16.4]} 48... e3 {[%clk 0:00:04.1]} 49. Kd3 {[%clk
0:00:16.4]} 49... f4 {[%clk 0:00:04.5]} 50. g3 {[%clk 0:00:14.5]} 50... g5
{[%clk 0:00:04.5]} 51. h4 {[%clk 0:00:14.8]} 51... h6 {[%clk 0:00:04.6]} 52.
hxg5 {[%clk 0:00:14.8]} 52... hxg5 {[%clk 0:00:05.5]} 53. gxf4 {[%clk
0:00:13.9]} 53... gxf4 {[%clk 0:00:06.4]} 54. Rb5+ {[%clk 0:00:14]} 54... Kc6
{[%clk 0:00:06.7]} 55. Rf5 {[%clk 0:00:14.1]} 55... Re8 {[%clk 0:00:04.7]} 56.
Ke2 {[%clk 0:00:12.9]} 56... Re4 {[%clk 0:00:04.2]} 57. Rf6+ {[%clk 0:00:12.4]}
57... Kb7 {[%clk 0:00:04.1]} 58. d5 {[%clk 0:00:12.8]} 58... Rd4 {[%clk
0:00:03.6]} 59. Re6 {[%clk 0:00:10.8]} 59... Rxd5 {[%clk 0:00:02.6]} 60. Re4
{[%clk 0:00:10.3]} 60... Rd2+ {[%clk 0:00:03.2]} 61. Ke1 {[%clk 0:00:10.9]}
61... Rf2 {[%clk 0:00:03.5]} 62. Re6 {[%clk 0:00:10.7]} 62... Rf3 {[%clk
0:00:03.1]} 63. Ke2 {[%clk 0:00:10.8]} 63... Rf2+ {[%clk 0:00:03.3]} 64. Ke1
{[%clk 0:00:11.2]} 64... Rh2 {[%clk 0:00:03.4]} 65. Re4 {[%clk 0:00:10.9]} 65...
Rh4 {[%clk 0:00:03.4]} 66. Ke2 {[%clk 0:00:11.3]} 66... Rh2+ {[%clk 0:00:03.6]}
67. Ke1 {[%clk 0:00:11.4]} 67... Rf2 {[%clk 0:00:04]} 68. Re6 {[%clk 0:00:11.2]}
1/2-1/2

[Event "Late-Titled-Tuesday-Blitz-May-14-2024"]
[Site "Chess.com"]
[Date "2024.05.14"]
[Round "3"]
[White "alexrustemov"]
[Black "NovakCabarkapa"]
[Result "0-1"]
[WhiteElo "2916"]
[BlackElo "2762"]
[TimeControl "180+1"]
[EndTime "14:30:30 PDT"]
[Termination "NovakCabarkapa won on time"]

1. d4 {[%clk 0:03:00.9]} 1... Nf6 {[%clk 0:02:59.7]} 2. c4 {[%clk 0:03:01.3]}
2... g6 {[%clk 0:03:00.2]} 3. Nf3 {[%clk 0:03:01.6]} 3... Bg7 {[%clk 0:03:00.9]}
4. g3 {[%clk 0:03:02.1]} 4... O-O {[%clk 0:03:01]} 5. Bg2 {[%clk 0:03:02.7]}
5... d6 {[%clk 0:03:01.4]} 6. Nc3 {[%clk 0:03:02.8]} 6... Nbd7 {[%clk
0:03:02.1]} 7. O-O {[%clk 0:03:03.2]} 7... e5 {[%clk 0:03:02.8]} 8. e4 {[%clk
0:03:03.6]} 8... Re8 {[%clk 0:03:02.4]} 9. h3 {[%clk 0:03:02.4]} 9... b6 {[%clk
0:03:02.3]} 10. Qc2 {[%clk 0:02:58.8]} 10... exd4 {[%clk 0:02:58.8]} 11. Nxd4
{[%clk 0:02:58.5]} 11... Bb7 {[%clk 0:02:59.4]} 12. Be3 {[%clk 0:02:53.4]} 12...
Nc5 {[%clk 0:02:59.3]} 13. f3 {[%clk 0:02:53.4]} 13... d5 {[%clk 0:03:00]} 14.
cxd5 {[%clk 0:02:52.3]} 14... Nxd5 {[%clk 0:03:00.2]} 15. Nxd5 {[%clk
0:02:50.7]} 15... Bxd5 {[%clk 0:03:00.4]} 16. Rfd1 {[%clk 0:02:45.3]} 16... Qe7
{[%clk 0:02:57.7]} 17. b4 {[%clk 0:02:39.8]} 17... Na6 {[%clk 0:02:20.6]} 18. b5
{[%clk 0:02:37]} 18... Nc5 {[%clk 0:02:16.6]} 19. Bf2 {[%clk 0:02:28.4]} 19...
Bb7 {[%clk 0:02:12.1]} 20. Rac1 {[%clk 0:02:27.1]} 20... Rad8 {[%clk 0:01:33.3]}
21. Nb3 {[%clk 0:02:21.7]} 21... Rxd1+ {[%clk 0:01:28.8]} 22. Rxd1 {[%clk
0:02:21.3]} 22... Nxb3 {[%clk 0:01:18.5]} 23. Qxb3 {[%clk 0:02:20.7]} 23... Rd8
{[%clk 0:01:18.5]} 24. a4 {[%clk 0:02:04.3]} 24... h5 {[%clk 0:01:13]} 25. h4
{[%clk 0:01:55.5]} 25... c5 {[%clk 0:00:58.9]} 26. bxc6 {[%clk 0:01:48.3]} 26...
Bxc6 {[%clk 0:00:58]} 27. Bf1 {[%clk 0:01:38.9]} 27... Rxd1 {[%clk 0:00:39.5]}
28. Qxd1 {[%clk 0:01:38.4]} 28... Qa3 {[%clk 0:00:40.1]} 29. Bb5 {[%clk
0:01:26.7]} 29... Bxb5 {[%clk 0:00:39.4]} 30. axb5 {[%clk 0:01:27.2]} 30... Bf8
{[%clk 0:00:25.7]} 31. Kg2 {[%clk 0:01:13.6]} 31... Qb2 {[%clk 0:00:25.1]} 32.
Qd8 {[%clk 0:00:42.1]} 32... Qxb5 {[%clk 0:00:22]} 33. Qb8 {[%clk 0:00:32.5]}
33... a5 {[%clk 0:00:20.4]} 34. Qxb6 {[%clk 0:00:30.3]} 34... Qxb6 {[%clk
0:00:20.3]} 35. Bxb6 {[%clk 0:00:31]} 35... a4 {[%clk 0:00:21]} 36. Bd4 {[%clk
0:00:30.2]} 36... a3 {[%clk 0:00:18.1]} 37. Kf2 {[%clk 0:00:29.4]} 37... a2
{[%clk 0:00:15.7]} 38. Ke2 {[%clk 0:00:29.4]} 38... Bd6 {[%clk 0:00:13]} 39. f4
{[%clk 0:00:25]} 39... f5 {[%clk 0:00:11.2]} 40. exf5 {[%clk 0:00:16.5]} 40...
gxf5 {[%clk 0:00:12.1]} 41. Kd3 {[%clk 0:00:16.9]} 41... Kf7 {[%clk 0:00:09.9]}
42. Kc2 {[%clk 0:00:16]} 42... Bc5 {[%clk 0:00:10]} 43. Bb2 {[%clk 0:00:11.5]}
43... Bf2 {[%clk 0:00:10]} 44. Kb3 {[%clk 0:00:11.3]} 44... Bxg3 {[%clk
0:00:10.2]} 45. Kxa2 {[%clk 0:00:11.9]} 45... Bxf4 {[%clk 0:00:10.5]} 46. Bd4
{[%clk 0:00:09]} 46... Bg3 {[%clk 0:00:09.9]} 47. Kb3 {[%clk 0:00:08.9]} 47...
Bxh4 {[%clk 0:00:06.9]} 48. Kc4 {[%clk 0:00:09.4]} 48... Bf6 {[%clk 0:00:06.3]}
49. Be3 {[%clk 0:00:08.8]} 49... Kg6 {[%clk 0:00:06.9]} 50. Kd3 {[%clk
0:00:09.1]} 50... h4 {[%clk 0:00:07.3]} 51. Ke2 {[%clk 0:00:09.3]} 51... Bg5
{[%clk 0:00:07.3]} 52. Bf2 {[%clk 0:00:08.4]} 52... h3 {[%clk 0:00:04.7]} 53.
Kf3 {[%clk 0:00:08.9]} 53... Bf6 {[%clk 0:00:04]} 54. Kg3 {[%clk 0:00:08.4]}
54... Bh4+ {[%clk 0:00:04.4]} 55. Kf3 {[%clk 0:00:05.2]} 55... Bxf2 {[%clk
0:00:04.7]} 56. Kxf2 {[%clk 0:00:05.7]} 56... Kg5 {[%clk 0:00:05.6]} 57. Kg3
{[%clk 0:00:06.5]} 57... h2 {[%clk 0:00:05.4]} 58. Kxh2 {[%clk 0:00:06.6]} 58...
Kf4 {[%clk 0:00:05.7]} 59. Kg2 {[%clk 0:00:06.4]} 59... Ke3 {[%clk 0:00:06.3]}
60. Kf1 {[%clk 0:00:06.3]} 60... Kf3 {[%clk 0:00:06.8]} 61. Kg1 {[%clk
0:00:04.7]} 61... Ke2 {[%clk 0:00:07.2]} 62. Kh2 {[%clk 0:00:03.8]} 62... f4
{[%clk 0:00:07.5]} 0-1